fUSD/lending_fUSD_20260621
["ID","MTS","AMOUNT","RATE_DAILY","PERIOD"]
[425877814,1782013888000,-617.88,0.00030684,2]
[425877806,1782013888000,-543.92,0.00030684,2]
[425877811,1782013888000,-500.0,0.00030684,2]
[425877808,1782013888000,-1672.96,0.00030684,2]
[425877810,1782013888000,-500.0,0.00030684,2]
[425877807,1782013888000,-500.0,0.00030684,2]
[425877812,1782013888000,-500.0,0.00030684,2]
[425877817,1782013888000,-817.63,0.00030684,2]
[425877822,1782013888000,-844.5,0.00030684,2]
[425877789,1782013888000,-500.0,0.00030684,2]
[425877815,1782013888000,-500.0,0.00030684,2]
[425877786,1782013888000,-500.0,0.00030684,2]
[425877758,1782013888000,-1098.37,0.00030684,2]
[425877785,1782013888000,-869.54,0.00030684,2]
[425877763,1782013888000,-734.05,0.00030684,2]
[425877764,1782013888000,-790.09,0.00030684,2]
[425877762,1782013888000,-506.93,0.00030684,2]
[425877761,1782013888000,-500.0,0.00030684,2]
[425877828,1782013888000,-801.57,0.00030684,2]
[425877759,1782013888000,-500.0,0.00030684,2]
[425877760,1782013888000,-646.67,0.00030684,2]
[425877765,1782013888000,-528.09,0.00030684,2]
[425877777,1782013888000,-3313.43,0.00030684,2]
[425877771,1782013888000,-500.0,0.00030684,2]
[425877778,1782013888000,-500.0,0.00030684,2]
[425877768,1782013888000,-638.77,0.00030684,2]
[425877767,1782013888000,-500.0,0.00030684,2]
[425877766,1782013888000,-728.07,0.00030684,2]
[425877769,1782013888000,-515.08,0.00030684,2]
[425877772,1782013888000,-500.0,0.00030684,2]
[425877776,1782013888000,-852.05,0.00030684,2]
[425877770,1782013888000,-622.27614938,0.00030684,2]
[425877774,1782013888000,-880.09,0.00030684,2]
[425877773,1782013888000,-736.73,0.00030684,2]
[425877775,1782013888000,-500.0,0.00030684,2]
[425877780,1782013888000,-535.45090985,0.00030684,2]
[425877790,1782013888000,-500.0,0.00030684,2]
[425877779,1782013888000,-500.0,0.00030684,2]
[425877781,1782013888000,-314.72,0.00030684,2]
[425877783,1782013888000,-500.0,0.00030684,2]
[425877782,1782013888000,-362.46476493,0.00030684,2]
[425877784,1782013888000,-500.0,0.00030684,2]
[425877788,1782013888000,-701.53,0.00030684,2]
[425877787,1782013888000,-409.57642536,0.00030684,2]
[425877819,1782013888000,-527.19,0.00030684,2]
[425877831,1782013888000,-702.77,0.00030684,2]
[425877826,1782013888000,-814.25,0.00030684,2]
[425877856,1782013888000,-758.84,0.00030684,2]
[425877868,1782013888000,-500.0,0.00030684,2]
[425877867,1782013888000,-500.0,0.00030684,2]
[425877860,1782013888000,-1065.67,0.00030684,2]
[425877862,1782013888000,-500.0,0.00030684,2]
[425877858,1782013888000,-1312.08,0.00030684,2]
[425877859,1782013888000,-500.0,0.00030684,2]
[425877863,1782013888000,-500.0,0.00030684,2]
[425877861,1782013888000,-7914.34,0.00030684,2]
[425877865,1782013888000,-390.31812348,0.00030684,2]
[425877866,1782013888000,-846.33,0.00030684,2]
[425877864,1782013888000,-500.0,0.00030684,2]
[425877869,1782013888000,-500.0,0.00030684,2]
[425877825,1782013888000,-500.0,0.00030684,2]
[425877874,1782013888000,-500.0,0.00030684,2]
[425877880,1782013888000,-261.0,0.00030684,120]
[425877875,1782013888000,-500.0,0.00030684,2]
[425877870,1782013888000,-500.0,0.00030684,2]
[425877871,1782013888000,-500.0,0.00030684,2]
[425877873,1782013888000,-500.0,0.00030684,2]
[425877879,1782013888000,-500.0,0.00030684,2]
[425877877,1782013888000,-523.29,0.00030684,2]
[425877878,1782013888000,-952.49,0.00030684,2]
[425877876,1782013888000,-609.23,0.00030684,2]
[425877882,1782013888000,-1036.11,0.000307,7]
[425877884,1782013888000,-250.0,0.00030778,17]
[425877881,1782013888000,-748.87,0.00030685,7]
[425877883,1782013888000,-1694.16,0.000307,7]
[425877885,1782013888000,-250.0,0.00030778,17]
[425877857,1782013888000,-500.0,0.00030684,2]
[425877847,1782013888000,-582.57,0.00030684,2]
[425877872,1782013888000,-500.0,0.00030684,2]
[425877851,1782013888000,-500.0,0.00030684,2]
[425877854,1782013888000,-626.55,0.00030684,2]
[425877821,1782013888000,-500.0,0.00030684,2]
[425877818,1782013888000,-500.0,0.00030684,2]
[425877827,1782013888000,-500.0,0.00030684,2]
[425877829,1782013888000,-350.09735223,0.00030684,2]
[425877824,1782013888000,-500.0,0.00030684,2]
[425877823,1782013888000,-500.0,0.00030684,2]
[425877820,1782013888000,-585.48,0.00030684,2]
[425877833,1782013888000,-500.0,0.00030684,2]
[425877832,1782013888000,-500.0,0.00030684,2]
[425877834,1782013888000,-500.0,0.00030684,2]
[425877842,1782013888000,-500.0,0.00030684,2]
[425877836,1782013888000,-163.87219011,0.00030684,2]
[425877839,1782013888000,-500.0,0.00030684,2]
[425877830,1782013888000,-500.0,0.00030684,2]
[425877838,1782013888000,-500.0,0.00030684,2]
[425877841,1782013888000,-904.05,0.00030684,2]
[425877848,1782013888000,-500.0,0.00030684,2]
[425877855,1782013888000,-500.0,0.00030684,2]
[425877850,1782013888000,-500.0,0.00030684,2]
[425877853,1782013888000,-500.0,0.00030684,2]
[425877852,1782013888000,-500.0,0.00030684,2]
[425877844,1782013888000,-741.12,0.00030684,2]
[425877849,1782013888000,-3923.16,0.00030684,2]
[425877845,1782013888000,-500.0,0.00030684,2]
[425877843,1782013888000,-1188.54,0.00030684,2]
[425877837,1782013888000,-1092.23,0.00030684,2]
[425877835,1782013888000,-500.0,0.00030684,2]
[425877840,1782013888000,-500.0,0.00030684,2]
[425877846,1782013888000,-500.0,0.00030684,2]
[425877927,1782013889000,-959.52,0.00030958,2]
[425877929,1782013889000,-645.72,0.00030958,2]
[425877926,1782013889000,-500.0,0.00030958,2]
[425877925,1782013889000,-500.0,0.00030958,2]
[425877928,1782013889000,-500.0,0.00030958,2]
[425877931,1782013889000,-500.0,0.00030958,2]
[425877922,1782013889000,-626.5,0.00030958,2]
[425877932,1782013889000,-977.38,0.00030958,2]
[425877921,1782013889000,-500.0,0.00030958,2]
[425877917,1782013889000,-500.0,0.00030958,2]
[425877916,1782013889000,-585.03,0.00030958,2]
[425877915,1782013889000,-2872.16327764,0.00030947,8]
[425877923,1782013889000,-820.99,0.00030958,2]
[425877933,1782013889000,-500.0,0.00030958,2]
[425877918,1782013889000,-500.0,0.00030958,2]
[425877930,1782013889000,-500.0,0.00030958,2]
[425877934,1782013889000,-562.22,0.00030958,2]
[425877945,1782013889000,-500.0,0.00030958,2]
[425877946,1782013889000,-707.99,0.00030958,2]
[425877935,1782013889000,-500.0,0.00030958,2]
[425877937,1782013889000,-500.0,0.00030958,2]
[425877936,1782013889000,-500.0,0.00030958,2]
[425877938,1782013889000,-824.18,0.00030958,2]
[425877943,1782013889000,-903.13,0.00030958,2]
[425877939,1782013889000,-500.0,0.00030958,2]
[425877941,1782013889000,-1027.02,0.00030958,2]
[425877942,1782013889000,-921.8,0.00030958,2]
[425877944,1782013889000,-500.0,0.00030958,2]
[425877940,1782013889000,-500.0,0.00030958,2]
[425877924,1782013889000,-601.5,0.00030958,2]
[425877914,1782013889000,-526.30007439,0.00030928,2]
[425877975,1782013889000,-500.0,0.00030958,2]
[425877909,1782013889000,-300.0,0.000309,11]
[425877948,1782013889000,-160.09,0.00030958,2]
[425877892,1782013889000,-193.0,0.00030867,30]
[425877893,1782013889000,-151.72310412,0.00030869,2]
[425877890,1782013889000,-274.0,0.00030867,30]
[425877889,1782013889000,-154.0,0.00030866,30]
[425877886,1782013889000,-392.0,0.00030836,2]
[425877888,1782013889000,-201.0,0.00030866,30]
[425877887,1782013889000,-155.0,0.00030866,30]
[425877891,1782013889000,-151.0,0.00030867,30]
[425877895,1782013889000,-1147.22476979,0.00030899,2]
[425877905,1782013889000,-500.0,0.000309,11]
[425877906,1782013889000,-500.0,0.000309,11]
[425877907,1782013889000,-178.37258696,0.000309,11]
[425877897,1782013889000,-500.0,0.000309,11]
[425877894,1782013889000,-215.61523197,0.00030898,2]
[425877901,1782013889000,-500.0,0.000309,11]
[425877898,1782013889000,-500.0,0.000309,11]
[425877902,1782013889000,-500.0,0.000309,11]
[425877899,1782013889000,-500.0,0.000309,11]
[425877900,1782013889000,-500.0,0.000309,11]
[425877903,1782013889000,-500.0,0.000309,11]
[425877904,1782013889000,-500.0,0.000309,11]
[425877896,1782013889000,-500.0,0.000309,11]
[425877908,1782013889000,-194.86063,0.000309,13]
[425877912,1782013889000,-13654.35613436,0.000309,6]
[425877920,1782013889000,-500.0,0.00030958,2]
[425877911,1782013889000,-165.35656661,0.000309,2]
[425877919,1782013889000,-500.0,0.00030958,2]
[425877910,1782013889000,-2110.0,0.000309,2]
[425877913,1782013889000,-350.0,0.0003091,18]
[425877959,1782013889000,-500.0,0.00030958,2]
[425877998,1782013889000,-866.94,0.00030958,2]
[425877957,1782013889000,-500.0,0.00030958,2]
[425877985,1782013889000,-500.0,0.00030958,2]
[425877979,1782013889000,-498.49697749,0.00030958,2]
[425877987,1782013889000,-648.44,0.00030958,2]
[425877994,1782013889000,-587.82,0.00030958,2]
[425877997,1782013889000,-500.0,0.00030958,2]
[425878013,1782013889000,-500.0,0.00030958,2]
[425877996,1782013889000,-500.0,0.00030958,2]
[425877986,1782013889000,-500.0,0.00030958,2]
[425877991,1782013889000,-500.0,0.00030958,2]
[425877988,1782013889000,-500.0,0.00030958,2]
[425877990,1782013889000,-500.0,0.00030958,2]
[425877995,1782013889000,-500.0,0.00030958,2]
[425877989,1782013889000,-500.0,0.00030958,2]
[425877992,1782013889000,-500.0,0.00030958,2]
[425877993,1782013889000,-500.0,0.00030958,2]
[425877999,1782013889000,-500.0,0.00030958,2]
[425878001,1782013889000,-880.44,0.00030958,2]
[425878004,1782013889000,-714.77,0.00030958,2]
[425878010,1782013889000,-500.0,0.00030958,2]
[425878002,1782013889000,-657.07,0.00030958,2]
[425878005,1782013889000,-500.0,0.00030958,2]
[425878003,1782013889000,-1000.0,0.00030958,2]
[425878000,1782013889000,-500.0,0.00030958,2]
[425878011,1782013889000,-500.0,0.00030958,2]
[425878006,1782013889000,-500.0,0.00030958,2]
[425878008,1782013889000,-500.0,0.00030958,2]
[425878009,1782013889000,-500.0,0.00030958,2]
[425878012,1782013889000,-500.0,0.00030958,2]
[425877958,1782013889000,-500.0,0.00030958,2]
[425877980,1782013889000,-500.0,0.00030958,2]
[425877978,1782013889000,-500.0,0.00030958,2]
[425878007,1782013889000,-500.0,0.00030958,2]
[425877976,1782013889000,-500.0,0.00030958,2]
[425877984,1782013889000,-500.0,0.00030958,2]
[425877954,1782013889000,-500.0,0.00030958,2]
[425877952,1782013889000,-500.0,0.00030958,2]
[425877955,1782013889000,-500.0,0.00030958,2]
[425877950,1782013889000,-500.0,0.00030958,2]
[425877947,1782013889000,-500.0,0.00030958,2]
[425877949,1782013889000,-554.73,0.00030958,2]
[425877956,1782013889000,-694.09,0.00030958,2]
[425877951,1782013889000,-1062.93,0.00030958,2]
[425877961,1782013889000,-500.0,0.00030958,2]
[425877972,1782013889000,-500.0,0.00030958,2]
[425877960,1782013889000,-601.78,0.00030958,2]
[425877962,1782013889000,-500.0,0.00030958,2]
[425877964,1782013889000,-500.0,0.00030958,2]
[425877953,1782013889000,-500.0,0.00030958,2]
[425877963,1782013889000,-500.0,0.00030958,2]
[425877974,1782013889000,-500.0,0.00030958,2]
[425877982,1782013889000,-500.0,0.00030958,2]
[425877981,1782013889000,-500.0,0.00030958,2]
[425877983,1782013889000,-784.61,0.00030958,2]
[425877971,1782013889000,-1427.42,0.00030958,2]
[425878014,1782013889000,-500.0,0.00030958,2]
[425877977,1782013889000,-500.0,0.00030958,2]
[425877968,1782013889000,-500.0,0.00030958,2]
[425877969,1782013889000,-500.0,0.00030958,2]
[425877966,1782013889000,-658.33,0.00030958,2]
[425877967,1782013889000,-500.0,0.00030958,2]
[425877970,1782013889000,-500.0,0.00030958,2]
[425877965,1782013889000,-500.0,0.00030958,2]
[425877973,1782013889000,-810.09,0.00030958,2]
[425878054,1782013890000,-500.0,0.00030958,2]
[425878051,1782013890000,-826.81,0.00030958,2]
[425878057,1782013890000,-500.0,0.00030958,2]
[425878058,1782013890000,-500.0,0.00030958,2]
[425878048,1782013890000,-500.0,0.00030958,2]
[425878047,1782013890000,-500.0,0.00030958,2]
[425878055,1782013890000,-500.0,0.00030958,2]
[425878050,1782013890000,-500.0,0.00030958,2]
[425878053,1782013890000,-500.0,0.00030958,2]
[425878049,1782013890000,-543.42,0.00030958,2]
[425878044,1782013890000,-500.0,0.00030958,2]
[425878052,1782013890000,-500.0,0.00030958,2]
[425878056,1782013890000,-500.0,0.00030958,2]
[425878063,1782013890000,-735.04,0.00030958,2]
[425878070,1782013890000,-669.02,0.00030958,2]
[425878059,1782013890000,-1238.3,0.00030958,2]
[425878065,1782013890000,-500.0,0.00030958,2]
[425878061,1782013890000,-750.42,0.00030958,2]
[425878064,1782013890000,-500.0,0.00030958,2]
[425878071,1782013890000,-772.82,0.00030958,2]
[425878066,1782013890000,-500.0,0.00030958,2]
[425878062,1782013890000,-500.0,0.00030958,2]
[425878069,1782013890000,-500.0,0.00030958,2]
[425878068,1782013890000,-500.0,0.00030958,2]
[425878067,1782013890000,-726.96,0.00030958,2]
[425878043,1782013890000,-785.14,0.00030958,2]
[425878072,1782013890000,-524.64,0.00030958,2]
[425878060,1782013890000,-500.0,0.00030958,2]
[425878041,1782013890000,-627.32,0.00030958,2]
[425878028,1782013890000,-534.11,0.00030958,2]
[425878042,1782013890000,-500.0,0.00030958,2]
[425878083,1782013890000,-500.0,0.00030958,2]
[425878016,1782013890000,-500.0,0.00030958,2]
[425878021,1782013890000,-500.0,0.00030958,2]
[425878017,1782013890000,-309.44,0.00030958,2]
[425878022,1782013890000,-500.0,0.00030958,2]
[425878018,1782013890000,-500.0,0.00030958,2]
[425878015,1782013890000,-601.23,0.00030958,2]
[425878020,1782013890000,-193.79907726,0.00030958,2]
[425878019,1782013890000,-500.0,0.00030958,2]
[425878023,1782013890000,-724.5,0.00030958,2]
[425878024,1782013890000,-500.0,0.00030958,2]
[425878025,1782013890000,-500.0,0.00030958,2]
[425878027,1782013890000,-500.0,0.00030958,2]
[425878026,1782013890000,-500.0,0.00030958,2]
[425878029,1782013890000,-500.0,0.00030958,2]
[425878030,1782013890000,-500.0,0.00030958,2]
[425878031,1782013890000,-500.0,0.00030958,2]
[425878032,1782013890000,-521.08644233,0.00030958,2]
[425878033,1782013890000,-500.0,0.00030958,2]
[425878035,1782013890000,-500.0,0.00030958,2]
[425878045,1782013890000,-500.0,0.00030958,2]
[425878034,1782013890000,-500.0,0.00030958,2]
[425878037,1782013890000,-500.0,0.00030958,2]
[425878038,1782013890000,-732.94,0.00030958,2]
[425878036,1782013890000,-500.0,0.00030958,2]
[425878046,1782013890000,-500.0,0.00030958,2]
[425878039,1782013890000,-500.0,0.00030958,2]
[425878040,1782013890000,-500.0,0.00030958,2]
[425878084,1782013890000,-1163.27,0.00030958,2]
[425878079,1782013890000,-500.0,0.00030958,2]
[425878081,1782013890000,-500.0,0.00030958,2]
[425878107,1782013890000,-500.0,0.00030958,2]
[425878104,1782013890000,-569.94,0.00030958,2]
[425878109,1782013890000,-630.94,0.00030958,2]
[425878111,1782013890000,-500.0,0.00030958,2]
[425878122,1782013890000,-500.0,0.00030958,2]
[425878112,1782013890000,-948.35,0.00030958,2]
[425878113,1782013890000,-558.93,0.00030958,2]
[425878115,1782013890000,-500.0,0.00030958,2]
[425878114,1782013890000,-500.0,0.00030958,2]
[425878116,1782013890000,-541.89,0.00030958,2]
[425878121,1782013890000,-156.37377183,0.00030958,2]
[425878120,1782013890000,-1261.56,0.00030958,2]
[425878118,1782013890000,-524.27,0.00030958,2]
[425878117,1782013890000,-500.0,0.00030958,2]
[425878123,1782013890000,-500.0,0.00030958,2]
[425878125,1782013890000,-521.83278784,0.00030958,2]
[425878131,1782013890000,-500.0,0.00030958,2]
[425878127,1782013890000,-500.0,0.00030958,2]
[425878124,1782013890000,-350.36,0.00030958,2]
[425878129,1782013890000,-500.0,0.00030958,2]
[425878126,1782013890000,-826.79,0.00030958,2]
[425878130,1782013890000,-520.75,0.00030958,2]
[425878132,1782013890000,-500.0,0.00030958,2]
[425878133,1782013890000,-500.0,0.00030958,2]
[425878128,1782013890000,-500.0,0.00030958,2]
[425878135,1782013890000,-500.0,0.00030958,2]
[425878134,1782013890000,-500.0,0.00030958,2]
[425878110,1782013890000,-500.0,0.00030958,2]
[425878108,1782013890000,-605.37,0.00030958,2]
[425878119,1782013890000,-524.67580964,0.00030958,2]
[425878100,1782013890000,-500.0,0.00030958,2]
[425878101,1782013890000,-574.26,0.00030958,2]
[425878080,1782013890000,-500.0,0.00030958,2]
[425878082,1782013890000,-500.0,0.00030958,2]
[425878074,1782013890000,-500.0,0.00030958,2]
[425878077,1782013890000,-500.0,0.00030958,2]
[425878076,1782013890000,-673.6,0.00030958,2]
[425878075,1782013890000,-578.2,0.00030958,2]
[425878078,1782013890000,-212.09379577,0.00030958,2]
[425878093,1782013890000,-588.9,0.00030958,2]
[425878090,1782013890000,-800.33,0.00030958,2]
[425878096,1782013890000,-500.0,0.00030958,2]
[425878088,1782013890000,-581.24,0.00030958,2]
[425878085,1782013890000,-489.96677777,0.00030958,2]
[425878098,1782013890000,-500.0,0.00030958,2]
[425878073,1782013890000,-500.0,0.00030958,2]
[425878106,1782013890000,-500.0,0.00030958,2]
[425878086,1782013890000,-517.54,0.00030958,2]
[425878105,1782013890000,-466.87446195,0.00030958,2]
[425878103,1782013890000,-575.92,0.00030958,2]
[425878102,1782013890000,-500.0,0.00030958,2]
[425878087,1782013890000,-654.53,0.00030958,2]
[425878091,1782013890000,-866.71,0.00030958,2]
[425878099,1782013890000,-645.18,0.00030958,2]
[425878089,1782013890000,-500.0,0.00030958,2]
[425878092,1782013890000,-500.0,0.00030958,2]
[425878095,1782013890000,-500.0,0.00030958,2]
[425878097,1782013890000,-1323.65,0.00030958,2]
[425878094,1782013890000,-500.0,0.00030958,2]
[425878175,1782013891000,-344.36699495,0.00030958,2]
[425878174,1782013891000,-839.91,0.00030958,2]
[425878179,1782013891000,-500.0,0.00030958,2]
[425878173,1782013891000,-1012.47,0.00030958,2]
[425878178,1782013891000,-500.0,0.00030958,2]
[425878170,1782013891000,-273.8603171,0.00030958,2]
[425878164,1782013891000,-41165.544399,0.00030958,2]
[425878180,1782013891000,-362.48482612,0.00030958,2]
[425878172,1782013891000,-500.0,0.00030958,2]
[425878181,1782013891000,-500.0,0.00030958,2]
[425878169,1782013891000,-500.0,0.00030958,2]
[425878176,1782013891000,-500.0,0.00030958,2]
[425878171,1782013891000,-500.0,0.00030958,2]
[425878177,1782013891000,-543.54,0.00030958,2]
[425878190,1782013891000,-500.0,0.00030958,2]
[425878183,1782013891000,-500.0,0.00030958,2]
[425878193,1782013891000,-1592.33,0.00030958,2]
[425878186,1782013891000,-500.0,0.00030958,2]
[425878194,1782013891000,-558.96,0.00030958,2]
[425878192,1782013891000,-500.0,0.00030958,2]
[425878191,1782013891000,-896.6,0.00030958,2]
[425878195,1782013891000,-152.14656906,0.00030958,2]
[425878185,1782013891000,-500.0,0.00030958,2]
[425878184,1782013891000,-500.0,0.00030958,2]
[425878189,1782013891000,-500.0,0.00030958,2]
[425878187,1782013891000,-500.0,0.00030958,2]
[425878188,1782013891000,-1298.43,0.00030958,2]
[425878165,1782013891000,-500.0,0.00030958,2]
[425878182,1782013891000,-500.0,0.00030958,2]
[425878166,1782013891000,-500.0,0.00030958,2]
[425878136,1782013891000,-500.0,0.00030958,2]
[425878161,1782013891000,-713.51,0.00030958,2]
[425878196,1782013891000,-500.0,0.00030958,2]
[425878143,1782013891000,-842.61,0.00030958,2]
[425878140,1782013891000,-500.0,0.00030958,2]
[425878137,1782013891000,-500.0,0.00030958,2]
[425878139,1782013891000,-754.65,0.00030958,2]
[425878138,1782013891000,-500.0,0.00030958,2]
[425878144,1782013891000,-500.0,0.00030958,2]
[425878142,1782013891000,-500.0,0.00030958,2]
[425878141,1782013891000,-500.0,0.00030958,2]
[425878147,1782013891000,-591.13,0.00030958,2]
[425878145,1782013891000,-500.0,0.00030958,2]
[425878148,1782013891000,-625.28,0.00030958,2]
[425878149,1782013891000,-500.0,0.00030958,2]
[425878163,1782013891000,-696.46,0.00030958,2]
[425878146,1782013891000,-500.0,0.00030958,2]
[425878153,1782013891000,-500.0,0.00030958,2]
[425878155,1782013891000,-500.0,0.00030958,2]
[425878151,1782013891000,-500.0,0.00030958,2]
[425878152,1782013891000,-514.07,0.00030958,2]
[425878154,1782013891000,-527.56,0.00030958,2]
[425878157,1782013891000,-500.0,0.00030958,2]
[425878168,1782013891000,-348.70208262,0.00030958,2]
[425878167,1782013891000,-500.0,0.00030958,2]
[425878156,1782013891000,-676.35,0.00030958,2]
[425878158,1782013891000,-500.0,0.00030958,2]
[425878159,1782013891000,-500.0,0.00030958,2]
[425878160,1782013891000,-505.39,0.00030958,2]
[425878162,1782013891000,-500.0,0.00030958,2]
[425878150,1782013891000,-500.0,0.00030958,2]
[425878198,1782013891000,-731.92,0.00030958,2]
[425878212,1782013891000,-500.0,0.00030958,2]
[425878197,1782013891000,-876.62,0.00030958,2]
[425878233,1782013891000,-500.0,0.00030958,2]
[425878235,1782013891000,-1018.86,0.00030958,2]
[425878232,1782013891000,-697.74,0.00030958,2]
[425878229,1782013891000,-500.0,0.00030958,2]
[425878237,1782013891000,-588.05,0.00030958,2]
[425878248,1782013891000,-500.0,0.00030958,2]
[425878247,1782013891000,-375.4178541,0.00030958,2]
[425878236,1782013891000,-500.0,0.00030958,2]
[425878239,1782013891000,-500.0,0.00030958,2]
[425878240,1782013891000,-500.0,0.00030958,2]
[425878238,1782013891000,-819.15,0.00030958,2]
[425878245,1782013891000,-823.97,0.00030958,2]
[425878242,1782013891000,-524.71,0.00030958,2]
[425878223,1782013891000,-695.39,0.00030958,2]
[425878243,1782013891000,-676.22,0.00030958,2]
[425878241,1782013891000,-500.0,0.00030958,2]
[425878244,1782013891000,-500.0,0.00030958,2]
[425878249,1782013891000,-670.3,0.00030958,2]
[425878251,1782013891000,-2357.13,0.00030958,2]
[425878252,1782013891000,-500.0,0.00030958,2]
[425878250,1782013891000,-500.0,0.00030958,2]
[425878254,1782013891000,-528.96619696,0.00030958,2]
[425878253,1782013891000,-538.74,0.00030958,2]
[425878256,1782013891000,-16323.99,0.00030958,2]
[425878259,1782013891000,-500.0,0.00030958,2]
[425878255,1782013891000,-500.0,0.00030958,2]
[425878258,1782013891000,-500.0,0.00030958,2]
[425878200,1782013891000,-500.0,0.00030958,2]
[425878246,1782013891000,-500.0,0.00030958,2]
[425878227,1782013891000,-1128.1,0.00030958,2]
[425878257,1782013891000,-34317.43824,0.00030958,2]
[425878228,1782013891000,-500.0,0.00030958,2]
[425878231,1782013891000,-500.0,0.00030958,2]
[425878199,1782013891000,-1331.76,0.00030958,2]
[425878207,1782013891000,-500.0,0.00030958,2]
[425878202,1782013891000,-500.0,0.00030958,2]
[425878201,1782013891000,-500.0,0.00030958,2]
[425878205,1782013891000,-500.0,0.00030958,2]
[425878208,1782013891000,-1717.05,0.00030958,2]
[425878206,1782013891000,-618.5413861,0.00030958,2]
[425878204,1782013891000,-371.44470405,0.00030958,2]
[425878210,1782013891000,-3730.98,0.00030958,2]
[425878221,1782013891000,-500.0,0.00030958,2]
[425878209,1782013891000,-625.17,0.00030958,2]
[425878213,1782013891000,-500.0,0.00030958,2]
[425878260,1782013891000,-500.0,0.00030958,2]
[425878203,1782013891000,-1589.12,0.00030958,2]
[425878216,1782013891000,-500.0,0.00030958,2]
[425878220,1782013891000,-662.46,0.00030958,2]
[425878234,1782013891000,-792.46,0.00030958,2]
[425878224,1782013891000,-500.0,0.00030958,2]
[425878225,1782013891000,-500.0,0.00030958,2]
[425878230,1782013891000,-500.0,0.00030958,2]
[425878222,1782013891000,-500.0,0.00030958,2]
[425878226,1782013891000,-500.0,0.00030958,2]
[425878218,1782013891000,-584.72,0.00030958,2]
[425878214,1782013891000,-500.0,0.00030958,2]
[425878219,1782013891000,-500.0,0.00030958,2]
[425878215,1782013891000,-500.0,0.00030958,2]
[425878217,1782013891000,-500.0,0.00030958,2]
[425878211,1782013891000,-500.0,0.00030958,2]
[425878287,1782013892000,-649.49701981,0.00030958,2]
[425878288,1782013892000,-760.3,0.00030958,2]
[425878286,1782013892000,-232.06,0.00030958,2]
[425878290,1782013892000,-500.0,0.00030958,2]
[425878294,1782013892000,-500.0,0.00030958,2]
[425878293,1782013892000,-500.0,0.00030958,2]
[425878291,1782013892000,-527.18,0.00030958,2]
[425878292,1782013892000,-584.79,0.00030958,2]
[425878301,1782013892000,-1664.91,0.00030958,2]
[425878295,1782013892000,-500.0,0.00030958,2]
[425878303,1782013892000,-500.0,0.00030958,2]
[425878300,1782013892000,-500.0,0.00030958,2]
[425878296,1782013892000,-984.14,0.00030958,2]
[425878298,1782013892000,-500.0,0.00030958,2]
[425878299,1782013892000,-500.0,0.00030958,2]